Cogmind - Beta 9.3 @@@ ROGUE MODE // 2019.12.23 @ 23:42:43 Player: Andru7428 Result: Self-destructed Performance ------------- Evolutions (2) 1000 Regions Visited (7) 1400 Robots Destroyed (55) 275 Value Destroyed (1410) 1410 Prototype IDs (25) 500 Alien Tech Used (0) 0 Bonus (274) 274 TOTAL SCORE: 4859 Bonus ------- Aligned with FarCom 300 Friendly Fire -26 Cogmind --------- Core Integrity 457/550 Matter 196/300 Energy 150/150 System Corruption 1% Temperature Cool (0) Movement Rolling (115) Ox3 Location -8/Materials Parts ------- > --- POWER (1) -------- Light Angular Momentum Engine > --- PROPULSION (2) --- Wheel Armored Wheel > --- UTILITY (6) ------ Improved Heat Sink Advanced Heat Sink Large Storage Unit Large Storage Unit Large Storage Unit Improved Weapon Shielding > --- WEAPON (2) ------- Particle Gun Improved Light Cannon > --- INVENTORY (22) --- Light Ion Engine Light Ion Engine Wheel Wheel Flying Fortress v7 Advanced Heat Sink Large Matter Pod (150) Improved Sensor Array Improved Signal Interpreter Hacking Suite Hacking Suite Chronowheel Particle Gun Particle Gun Guided Plasma Cannon Assault Rifle EMP Blaster Grenade Launcher Rocket Launcher Peak State ------------ > --- POWER ------------ Light Angular Momentum Engine > --- PROPULSION ------- Wheel Armored Wheel > --- UTILITY ---------- Improved Heat Sink Advanced Heat Sink Large Storage Unit Large Storage Unit Large Storage Unit Improved Weapon Shielding > --- WEAPON ----------- Particle Gun Improved Light Cannon > --- INVENTORY -------- Light Ion Engine Light Ion Engine Flying Fortress v7 Advanced Heat Sink Large Matter Pod Improved Sensor Array Improved Signal Interpreter Hacking Suite Hacking Suite Chronowheel Particle Gun Particle Gun Guided Plasma Cannon Assault Rifle EMP Blaster Grenade Launcher Rocket Launcher [Rating: 34] Favorites ----------- Power Ion Engine Engine Ion Engine Propulsion Wheel Wheel Wheel Utility Large Storage Unit Device Improved Heat Sink Storage Large Storage Unit Protection Improved Weapon Shielding Weapon Improved EM Shotgun Energy Gun Improved EM Shotgun Ballistic Gun Light Assault Rifle Ballistic Cannon Improved Light Cannon Launcher EMP Blaster Build | -11 -10 -10 -9 -9 -9 -8 -8 ------- Run | Scr Mat Min Mat Min Exi Min Mat Slots Evolved 4 | . . . 2 . . . 2 Power . | . . . . . . . . Propulsion . | . . . . . . . . Utility 4 | . . . 2 . . . 2 Weapon . | . . . . . . . . Parts Attached 56 | 6 12 2 13 3 1 10 9 Power 6 | 1 2 . 1 . . 1 1 Engine 6 | 1 2 . 1 . . 1 1 Core . | . . . . . . . . Reactor . | . . . . . . . . Propulsion 12 | 2 1 1 2 1 . 1 4 Treads . | . . . . . . . . Leg . | . . . . . . . . Wheel 12 | 2 1 1 2 1 . 1 4 Hover . | . . . . . . . . Flight . | . . . . . . . . Utility 13 | 1 2 . 5 . 1 1 3 Device 5 | . . . 2 . . 1 2 Storage 7 | 1 2 . 3 . 1 . . Processor . | . . . . . . . . Hackware . | . . . . . . . . Protection 1 | . . . . . . . 1 Artifact . | . . . . . . . . Weapon 25 | 2 7 1 5 2 . 7 1 Energy Gun 14 | 2 4 . 4 1 . 2 1 Energy Cannon . | . . . . . . . . Ballistic Gun 3 | . 2 1 . . . . . Ballistic Cannon 2 | . . . . . . 2 . Launcher 6 | . 1 . 1 1 . 3 . Special Weapon . | . . . . . . . . Impact Weapon . | . . . . . . . . Slashing Weapon . | . . . . . . . . Piercing Weapon . | . . . . . . . . Special Melee Weapon . | . . . . . . . . Unidentified Prototypes 1 | . . . 1 . . . . Parts Lost 24 | . 6 . 6 1 . 6 5 Power 4 | . 1 . 1 . . 1 1 Propulsion 9 | . 1 . 2 1 . 2 3 Utility 2 | . . . 1 . . . 1 Weapon 9 | . 4 . 2 . . 3 . Highest Loss Streak 5 | . 2 . 4 1 . 4 5 Average Slot Usage (%) 97 | . 98 100 94 100 100 98 95 Engine 11 | . 14 14 11 11 11 11 7 Wheel 22 | . 28 28 20 22 22 21 15 Device 8 | . . . 11 11 11 11 18 Storage 29 | . 26 28 29 33 33 33 27 Protection 1 | . . . . . . . 8 Energy Gun 14 | . 16 14 17 22 22 10 2 Ballistic Gun 4 | . 10 14 3 . . . . Ballistic Cannon 3 | . . . . . . 10 9 Launcher 1 | . . . . . . . 6 Naked Turns . | . . . . . . . . Heaviest Build 68 | 13 27 22 52 52 60 61 68 Greatest Support 26 | 20 20 20 26 26 26 20 22 Greatest Overweight (x) 5 | . 1 1 2 1 2 5 5 Average Overweight (x) 1 | . . 1 . 1 1 3 3 Largest Inventory Capacity 22 | 6 12 12 20 20 22 22 22 Average Capacity 16 | 5 11 12 16 20 21 22 22 Most Carried 22 | 6 12 12 19 18 22 22 22 Average Carried 14 | 2 8 12 14 17 20 19 19 Final Capacity 22 | 6 12 12 20 20 22 22 22 Final Carried 22 | 6 12 12 18 18 22 21 22 Class Distribution -------------------- 42% | Hauler-Mutant 41% | Mutant 16% | Scavenger-Mutant Dominant Class ---------------- Mutant | -10/Materials Mutant | -10/Mines Mutant | -9/Materials Hauler-Mutant | -9/Mines Hauler-Mutant | -9/Exiles Hauler-Mutant | -8/Mines Scavenger-Mutant | -8/Materials Resources | -11 -10 -10 -9 -9 -9 -8 -8 ----------- Run | Scr Mat Min Mat Min Exi Min Mat Matter Collected 1174 | 219 311 73 227 35 . 102 207 Remotely . | . . . . . . . . Salvage Created 1580 | 17 469 90 443 31 . 254 276 Parts 101 | 5 29 11 22 6 . 17 11 Haulers Intercepted . | . . . . . . . . Recyclers Shooed . | . . . . . . . . Parts Field Recycled . | . . . . . . . . Retrieved Matter . | . . . . . . . . Parts Self-Destructed . | . . . . . . . . Prevented . | . . . . . . . . Kills | -11 -10 -10 -9 -9 -9 -8 -8 ------- Run | Scr Mat Min Mat Min Exi Min Mat Combat Hostiles Destroyed 40 | . 13 3 8 4 . 8 4 Guns 22 | . 9 3 7 2 . . 1 Cannons 6 | . . . . . . 3 3 AOE 11 | . 4 . . 2 . 5 . Classes Destroyed 10 | 1 3 1 3 . . . 2 Worker 8 | . . 2 1 . . 1 4 Tunneler 2 | 1 . . . . . 1 . Recycler 1 | . . . . . . . 1 Operator 2 | . 2 . . . . . . Watcher 2 | . . . 1 . . . 1 Swarmer 13 | . 3 3 . 4 . 3 . Grunt 23 | . 10 . 6 . . 4 3 Brawler 1 | . . . 1 . . . . Duelist 2 | . . . 1 . . 1 . Sentry 1 | . . . . . . . 1 Best Kill Streak 9 | 1 3 3 3 4 . 5 9 Combat Bots Only 4 | . 3 3 2 4 . 4 4 Max Kills in Single Turn 3 | 1 2 1 1 3 . 2 1 Gunslinging 1 | . 1 . . . . . . Exploded 2 | . 2 . . 2 . 1 . Melee . | . . . . . . . . Uniques/NPCs Destroyed . | . . . . . . . . Combat | -11 -10 -10 -9 -9 -9 -8 -8 -------- Run | Scr Mat Min Mat Min Exi Min Mat Damage Taken 2348 | . 713 73 401 72 . 552 537 Core 474 | . 182 7 81 . . 111 93 Absorbed by Shields . | . . . . . . . . Core Remaining (%) 58 | 100 . 24 . . . 52 . Volleys Fired 167 | 3 62 12 32 3 . 21 34 Largest 2 | 2 2 2 2 2 . 2 2 Hottest 104 | 90 90 70 90 90 . 104 104 Shots Fired 297 | 6 115 21 55 6 . 34 60 Gun 231 | 6 112 21 51 5 . 11 25 Cannon 42 | . . . . . . 12 30 Launcher 24 | . 3 . 4 1 . 11 5 Special . | . . . . . . . . Kinetic 112 | . 46 9 15 . . 12 30 Thermal 107 | 3 53 12 10 . . 4 25 Explosive 10 | . 3 . . 1 . 6 . Electromagnetic 68 | 3 13 . 30 5 . 12 5 Robot Hit Streak 20 | 1 14 11 9 3 . 6 20 Robot Miss Streak 4 | 4 3 3 2 3 . 3 3 Penetration Max . | . . . . . . . . Secondary Targets 2 | . 1 1 . . . . . Max Gunslinging Chain 1 | . 1 1 . . . . . Shots Hit Robots 200 | 1 77 11 41 3 . 24 43 Core Hits 96 | 1 29 6 22 4 . 18 16 Critical Hits 1 | . 1 . . . . . . Critical Kills 1 | . 1 . . . . . . Critical Parts Destroyed . | . . . . . . . . Melee Attacks . | . . . . . . . . Impact . | . . . . . . . . Slashing . | . . . . . . . . Piercing . | . . . . . . . . Sneak Attacks . | . . . . . . . . Combat Hostiles . | . . . . . . . . Follow-up Attacks . | . . . . . . . . Damage Inflicted 4224 | 12 1185 82 727 230 . 958 1030 Guns 1921 | 12 940 82 480 39 . 103 265 Cannons 715 | . . . . . . 164 551 Explosions 1588 | . 245 . 247 191 . 691 214 Melee . | . . . . . . . . Ramming . | . . . . . . . . Kinetic 1185 | . 385 21 64 . . 164 551 Thermal 977 | . 503 61 113 . . 35 265 Explosive 748 | . 144 . . 191 . 413 . Electromagnetic 1314 | 12 153 . 550 39 . 346 214 Impact . | . . . . . . . . Slashing . | . . . . . . . . Piercing . | . . . . . . . . Highest Corruption 1 | . . . . . . . 1 Average Corruption 1 | . . . . . . . 1 Corruption Purged . | . . . . . . . . Effects 2 | . . . . . . . 2 Targeting Errors 2 | . . . . . . . 2 Overload Shots . | . . . . . . . . Overflow Damage 51 | . 22 . . 2 . 11 16 Projectiles 16 | . . . . . . . 16 Explosions 35 | . 22 . . 2 . 11 . Melee . | . . . . . . . . Knockbacks 9 | . . . . . . . 9 Impact . | . . . . . . . . Kinetic 6 | . . . . . . . 6 Secondary 3 | . . . . . . . 3 Self-Inflicted Damage 163 | . 41 . . 28 . 13 81 Shots 10 | . 1 . . 1 . 3 5 Rammed . | . . . . . . . . Targets Rammed . | . . . . . . . . Kicked . | . . . . . . . . Crushed . | . . . . . . . . Highest Temperature 243 | 60 243 130 7 . . 7 . Average Temperature 50 | 28 57 57 4 . . 3 . Received Heat Transfer 1071 | . 381 . 186 . . 288 216 Siege Activations . | . . . . . . . . Robots Corrupted 1 | . . . 1 . . . . Combat Hostiles 1 | . . . 1 . . . . Parts Fried 6 | . . . 4 . . 1 1 Impact Corruptions . | . . . . . . . . Robots Melted . | . . . . . . . . Combat Hostiles . | . . . . . . . . Parts Melted 4 | . 2 . 1 . . . 1 Heat Transferred 2386 | . 1128 185 333 . . 74 666 Parts Sabotaged . | . . . . . . . . Parts Stolen . | . . . . . . . . Parts Stripped . | . . . . . . . . Power Chain Reactions 2 | . 1 . . . . 1 . Missiles Intercepted . | . . . . . . . . Alert | -11 -10 -10 -9 -9 -9 -8 -8 ------- Run | Scr Mat Min Mat Min Exi Min Mat Peak Influence 229 | 5 204 95 194 134 . 139 229 Average Influence 81 | . 101 40 74 130 . 46 111 Maximum Alert Level 1 | . 1 . . . . . 1 Low Security (%) 97 | 100 97 100 100 100 . 100 88 Level 1 2 | . 2 . . . . . 11 Level 2 . | . . . . . . . . Level 3 . | . . . . . . . . Level 4 . | . . . . . . . . Level 5 . | . . . . . . . . High Security . | . . . . . . . . Max Security . | . . . . . . . . Squads Dispatched 8 | . 6 . 1 . . 1 . Investigation 2 | . 2 . . . . . . Extermination . | . . . . . . . . Reinforcement 6 | . 4 . 1 . . 1 . Assault . | . . . . . . . . Garrison . | . . . . . . . . Intercept . | . . . . . . . . Construction Impeded 1 | . . . . . . 1 . Haulers Reinforced . | . . . . . . . . Stealth | -11 -10 -10 -9 -9 -9 -8 -8 --------- Run | Scr Mat Min Mat Min Exi Min Mat Distress Signals 5 | . 3 . 1 . . . 1 Communications Jammed . | . . . . . . . . Distress Signals . | . . . . . . . . Times Spotted 79 | . 35 3 17 4 . 9 11 Peak Tracking Total 5 | . 5 3 3 4 . 4 5 Tactical Retreats 11 | . 7 . 3 . . . 1 Traps | -11 -10 -10 -9 -9 -9 -8 -8 ------- Run | Scr Mat Min Mat Min Exi Min Mat Traps Triggered 1 | . 1 . . . . . . Indirectly . | . . . . . . . . Trap Hack Attempts . | . . . . . . . . Triggered . | . . . . . . . . Disarmed . | . . . . . . . . Reprogrammed . | . . . . . . . . Reused . | . . . . . . . . Traps Extracted . | . . . . . . . . Installed . | . . . . . . . . Triggered 1 | . . . 1 . . . . Machines | -11 -10 -10 -9 -9 -9 -8 -8 ---------- Run | Scr Mat Min Mat Min Exi Min Mat Machines Disabled 6 | . . . 2 . . . 4 Max in Single Turn 2 | . . . 1 . . . 2 Machines Sabotaged . | . . . . . . . . Garrisons Compromised . | . . . . . . . . Overloaded Fab Kills . | . . . . . . . . Fab Network Shutdowns . | . . . . . . . . Hacking | -11 -10 -10 -9 -9 -9 -8 -8 --------- Run | Scr Mat Min Mat Min Exi Min Mat Machines Accessed 11 | . 2 . 5 . 1 . 3 Terminals 10 | . 2 . 5 . . . 3 Fabricators . | . . . . . . . . Repair Stations . | . . . . . . . . Recycling Units . | . . . . . . . . Scanalyzers . | . . . . . . . . Garrison Access . | . . . . . . . . Total Hacks 26 | . 7 . 12 . 1 . 6 Successful 13 | . 3 . 6 . 1 . 3 Failed 13 | . 4 . 6 . . . 3 Catastrophic 3 | . 1 . 2 . . . . Database Lockouts . | . . . . . . . . Manual 21 | . 7 . 9 . 1 . 4 Terminals 25 | . 7 . 12 . . . 6 Fabricators . | . . . . . . . . Repair Stations . | . . . . . . . . Recycling Units . | . . . . . . . . Scanalyzers . | . . . . . . . . Garrison Access . | . . . . . . . . Terminal Hacks 7 | . . . 3 . 1 . 3 Part Schematic 1 | . . . . . . . 1 Prototype ID Bank 1 | . . . 1 . . . . Branch Access Points 1 | . . . . . . . 1 Locate Traps 1 | . . . . . . . 1 Recall Reinforcements 1 | . . . 1 . . . . Registered Components 1 | . . . 1 . . . . EX-Prototype ID Bank 1 | . . . . . 1 . . Fabricator Hacks . | . . . . . . . . Repair Station Hacks . | . . . . . . . . Recycling Unit Hacks . | . . . . . . . . Scanalyzer . | . . . . . . . . Garrison Access Hacks . | . . . . . . . . Unauthorized Hacks 18 | . 10 . 8 . . . . Terminals 6 | . 3 . 3 . . . . Track 4 | . 2 . 2 . . . . Assimilate 2 | . 1 . 1 . . . . Fabricators . | . . . . . . . . Repair Stations . | . . . . . . . . Recycling Units . | . . . . . . . . Scanalyzers . | . . . . . . . . Garrison Access . | . . . . . . . . Data Cores Recovered . | . . . . . . . . Used . | . . . . . . . . Hacking Detections 10 | . 2 . 5 . . . 3 Full Trace Events 2 | . 1 . 1 . . . . Feedback Events . | . . . . . . . . Feedback Blocked . | . . . . . . . . Robot Schematics Acquired . | . . . . . . . . Robots Built . | . . . . . . . . Matter . | . . . . . . . . Time . | . . . . . . . . Total Robot Build Rating . | . . . . . . . . Part Schematics Acquired 1 | . . . . . . . 1 Parts Built . | . . . . . . . . Matter . | . . . . . . . . Time . | . . . . . . . . Total Part Build Rating . | . . . . . . . . Parts Repaired . | . . . . . . . . Time . | . . . . . . . . Parts Recycled . | . . . . . . . . Recycled Matter . | . . . . . . . . Retrieved Matter . | . . . . . . . . Retrieved Components . | . . . . . . . . Parts Scanalyzed . | . . . . . . . . Part Schematics Acquired . | . . . . . . . . Parts Damaged . | . . . . . . . . Bothacking | -11 -10 -10 -9 -9 -9 -8 -8 ------------ Run | Scr Mat Min Mat Min Exi Min Mat Used RIF Installer . | . . . . . . . . Robots Hacked . | . . . . . . . . Non-combat . | . . . . . . . . Combat . | . . . . . . . . Robot Hacks Applied . | . . . . . . . . Relay Couplers Released . | . . . . . . . . Robots Rewired . | . . . . . . . . Allies Hacked . | . . . . . . . . Hacks Repelled . | . . . . . . . . Allies | -11 -10 -10 -9 -9 -9 -8 -8 -------- Run | Scr Mat Min Mat Min Exi Min Mat Total Allies 1 | . . . 1 . . . . Largest Group 1 | . . . 1 1 1 1 . Highest-Rated Group 10 | . . . 10 10 10 10 . Highest-Rated Ally 10 | . . . 10 10 10 10 . Total Orders 3 | . . . 3 . . . . GOTO 2 | . . . 2 . . . . FOLLOW 1 | . . . 1 . . . . Ally Attacks . | . . . . . . . . Total Damage . | . . . . . . . . Kills . | . . . . . . . . Allies Corrupted . | . . . . . . . . Allies Melted . | . . . . . . . . Intel | -11 -10 -10 -9 -9 -9 -8 -8 ------- Run | Scr Mat Min Mat Min Exi Min Mat Robot Analysis Total . | . . . . . . . . Derelict Logs Recovered . | . . . . . . . . Drone Launches . | . . . . . . . . Drone Recoveries . | . . . . . . . . Exploration | -11 -10 -10 -9 -9 -9 -8 -8 ------------- Run | Scr Mat Min Mat Min Exi Min Mat Turns Passed 3178 | 75 904 123 650 89 360 570 407 Spaces Moved 2067 | 64 539 51 393 69 323 375 253 Core 10 | 10 . . . . . . . Treads . | . . . . . . . . Legs . | . . . . . . . . Wheels 2057 | 54 539 51 393 69 323 375 253 Hover . | . . . . . . . . Flight . | . . . . . . . . Fastest Speed 50 | 50 80 90 90 100 100 100 110 Average Speed 100 | 75 88 90 99 100 109 110 111 Slowest Speed 140 | 80 90 90 120 100 110 130 140 Overloaded Moves . | . . . . . . . . Propulsion Burnouts . | . . . . . . . . Robots Hopped . | . . . . . . . . Cave-ins Triggered . | . . . . . . . . Exploration Rate (%) 33 | 4 77 7 26 18 76 37 22 Regions Visited 7 Branch Regions 4 Pre-discovered Areas . | . . . . . . . . Known Exits Taken . | . . . . . . . . Unknown Exits Taken 7 | 1 1 1 1 1 1 1 . Scrap Searched 1 | . . . . 1 . . . Spaces Dug . | . . . . . . . . Terrain Destroyed 99 | . 33 . . 9 . 57 . Melee . | . . . . . . . . Projectile 4 | . . . . . . 4 . AOE 95 | . 33 . . 9 . 53 . Actions | -11 -10 -10 -9 -9 -9 -8 -8 --------- Run | Scr Mat Min Mat Min Exi Min Mat Total 2866 | 84 853 110 599 82 328 493 317 Wait 504 | . 219 42 142 7 . 82 12 Move 2060 | 63 538 50 392 68 322 374 253 Hop . | . . . . . . . . Pick Up 65 | 12 17 1 17 1 3 5 9 Fast Attach 1 | . 1 . . . . . . Attach 36 | 6 6 . 10 1 . 5 8 Detach . | . . . . . . . . Swap 19 | . 5 2 3 2 1 5 1 Drop 14 | . 5 3 3 . 2 1 . Fire 167 | 3 62 12 32 3 . 21 34 Melee . | . . . . . . . . Ram . | . . . . . . . . Kick . | . . . . . . . . Crush . | . . . . . . . . Escape Stasis . | . . . . . . . . Rewire . | . . . . . . . . Trap . | . . . . . . . . Miscellaneous . | . . . . . . . . Route ------- -11/Scrapyard -10/Materials (discovered 3 exits: *Mat x2 / [*Min]) -10/Mines -9/Materials -9/Mines (discovered 2 exits: *Mat / *Exi) -9/Exiles -8/Mines -8/Materials History --------- Turn | Location | Event 6 | -11/Scrapyard | Discovered new exit (range 16) 76 | -11/Scrapyard | Entered Materials 318 | -10/Materials | Build established: Mutant 445 | -10/Materials | Discovered new exit (range 16) 501 | -10/Materials | Core integrity fell below 50% 899 | -10/Materials | Discovered new exit (range 16) 964 | -10/Materials | Discovered new exit (range 14) 980 | -10/Materials | Entered Mines 1097 | -10/Mines | Discovered new exit (range 8) 1103 | -10/Mines | Entered Materials 1103 | -9/Materials | Evolved 2 slots: Utility x2 1335 | -9/Materials | Lost 4 parts (1p2n1w) 1695 | -9/Materials | Discovered new exit (range 9) 1753 | -9/Materials | Entered Mines 1753 | -9/Mines | Accompanied by 1 ally 1782 | -9/Mines | Discovered new exit (range 13) 1829 | -9/Mines | Deemed a non-threat by the Exiles lab entrance 1830 | -9/Mines | Discovered new exit (range 5) 1842 | -9/Mines | Entered Exiles 1842 | -9/Exiles | Accompanied by 1 ally 1843 | -9/Exiles | Build established: Hauler-Mutant 1870 | -9/Exiles | Met 8R-AWN 1890 | -9/Exiles | Met EX-HEX 1920 | -9/Exiles | Met EX-BIN 1935 | -9/Exiles | Aligned with FarCom system 1936 | -9/Exiles | Given EX-Vault access code 1961 | -9/Exiles | Opened EX-Vault 1970 | -9/Exiles | Found Gui. Plasma Cannon 1976 | -9/Exiles | Found Chronowheel 1979 | -9/Exiles | Found Flying Fortress v7 2002 | -9/Exiles | Warned to stay clear of 0b10 Research branches 2032 | -9/Exiles | Met EX-DEC 2066 | -9/Exiles | Visited The Gauntlet 2189 | -9/Exiles | Discovered new exit (range 11) 2202 | -9/Exiles | Stole three prototypes: Flying Fortress v7, Chronowheel, Gui. Plasma Cannon 2202 | -9/Exiles | Entered Mines 2202 | -8/Mines | Accompanied by 1 ally 2702 | -8/Mines | Discovered new exit (range 14) 2768 | -8/Mines | Lost 4 parts (1p1n2w) 2772 | -8/Mines | Entered Materials 2772 | -8/Materials | Evolved 2 slots: Utility x2 3123 | -8/Materials | Lost 5 parts (1p3n1u) 3179 | -8/Materials | Self-destructed Last Messages --------------- 03146_ Acquired 89 matter. 03147_ K-01 Serf collects debris. 03149_ Acquired Adv. Heat Sink. 03149_ K-01 Serf collects debris. 03151_ Acquired Lgt. Ion Engine. 03153_ K-01 Serf collects debris. 03155_ Acquired 8 matter. 03156_ K-01 Serf destroyed. 03157_ U-05 Engineer builds a Door. 03157_ K-01 Serf collects debris. 03161_ Acquired Wheel. 03161_ K-01 Serf collects debris. 03162_ U-05 Engineer lays Concrete. 03165_ K-01 Serf destroyed. 03170_ K-01 Serf collects debris. 03171_ Acquired Wheel. 03172_ System corrupted: Particle Gun targeting data glitched. 03172_ Sml. Matter Pod melted. 03172_ K-01 Serf destroyed. 03178_ Acquired Wheel. Map ----- +----------------------------------------------------+ | ?????????????????????????????????????????????????? | | ?????????????????????????????????????????????????? | | ?????????????????????????????????????????????????? | | ?????????????????????????????????????????????????? | | ?????????????????????????????????????????????????? | | ?????????????????????????????????????????????????? | | ???????????????????????????????????????####?????## | | ???????????????????glg?????????????????# | | ?????????????????????????????w?????????# #???### | | ???????????????????????????????????????# #?????? | | ???????????????????????????????????????# #?????? | | ???????????????????????????????????????# #?????? | | ???????????????????????????????????????# #?????? | | ???????????????????###########+#####???# ####### | | ???????????????????# ## #???# # | | ???????????????????#! !## #???# # | | ???????????????????# ## #???# # | | ???????????????????# ## #???# + | | ???????????????????# ## #???# # | | ?????????????####### ## #???# # | | ?????????????# ###+#########+####### ######+ | | ?????????????# #????# | | ?????????????# #????# | | ?????????????# #????# | | ?????????????# """ ##########+####????# | | ???????########### """ @%= #????????# ""??????# | | ???????# ! ?## """ " #????????# ""R"????# | | ???????? !# ! !% T #????????# "" " ???# | | ????????? """ # %* #????????# ???# | | ??????????""""" +^ #????????# #??# | | ??????????""""" # % #????????# #??# | | ??????????""""" # ###+##########??######?#??## | | ?????????? """ ?# # %% #?????????????? | | ?????????? ?# # """ #?????????????? | | ?????????? ??# # """"" #?????????????? | | ?????????#####??# # """ " #?????????????? | | ????????????????# # #?????????????? | | ???????????????? w ##############?????????????? | | ??????????????? #??????????????????????????? | | ??????????????#### ??????????????????????????? | | ?????????????????# ????????w????????????????? | | ?????????????????# ?????????????????????????? | | ?????????????????####+##?????????????????????????? | | ?????????????????????????????????????????????????? | | ?????????????????????????????????????????????????? | | ?????????????????????????????????????????????????? | | ?????????????????????????????????????????????????? | | ?????????????????????????????????????????????????? | | ?????????????????????????????????????????????????? | | ?????????????????????????????????????????????????? | +----------------------------------------------------+ Best States ------------- Heat Dissipation 64 Energy Generation 18 Energy Capacity 250 Matter Stores 300 Matter Capacity 300 Sight Range 16 Terrain Scan Density 10 Weapon Shielding 66 Evasion (%) 44 Item Schematics ----------------- Hacking Suite | -8/Materials | Hacked Robot Schematics ------------------ None Fabricated ------------ Nothing Alien Tech Used ----------------- None Achievements -------------- None Challenges ------------ None Game ------ Seed TachyonChromaticThruster Manual? 0 Play Time 00:29:50 Cumulative 40.1 hours Start 2019.12.21 @ 14:12:40 End 2019.12.23 @ 23:42:43 Sessions 3 Manual Loads 0 Difficulty Rogue Special Mode None Game No. 40 Rogue 40 Adventurer 0 Explorer 0 Win Type - Total 0 Types 0/0/0/0/0/0/0 Lore% 34 Gallery% 38 Achievement% 33 Wizard Run 0 Options --------- ASCII 0 Keyboard 0 Movement Mouse Keybinds 0 Fullscreen 1 Font 12/Smallcaps Map View 83x54 Tactical HUD 1 Map Filters NONE Filters NONE Steam 1 RUN: 76270931-b47d-4257-a529-2cff7178d7fc